bitfinex-derivatives/quotes_BTCF0:USTF0_20250913
["timestamp","ask_amount","ask_price","bid_price","bid_amount"]
[1757735999113,0.28918349,116030.0,116020.0,3.99343623]
[1757736001013,0.28918349,116030.0,116020.0,3.72876]
[1757736001214,0.28918349,116030.0,116020.0,3.99343623]
[1757736001516,0.28918349,116030.0,116020.0,3.72876]
[1757736001714,0.28918349,116030.0,116020.0,3.99343623]
[1757736002513,0.29764749,116030.0,116020.0,3.99343623]
[1757736003816,0.29764749,116030.0,116020.0,3.72876]
[1757736004015,0.29764749,116030.0,116020.0,3.99343623]
[1757736004817,0.28918349,116030.0,116020.0,3.99343623]
[1757736006111,0.28918349,116030.0,116020.0,3.72876]
[1757736006310,0.28918349,116030.0,116020.0,3.99343623]
[1757736009610,0.28918349,116030.0,116020.0,3.19139623]
[1757736009816,0.28918349,116030.0,116020.0,3.99267623]
[1757736010518,0.28918349,116030.0,116020.0,3.728]
[1757736010720,0.28918349,116030.0,116020.0,3.99267623]
[1757736010914,0.28918349,116030.0,116020.0,3.728]
[1757736011114,0.28918349,116030.0,116020.0,3.99267623]
[1757736012116,0.3774089,116030.0,116020.0,2.56494541]
[1757736012317,0.3774089,116030.0,116020.0,2.10414541]
[1757736012318,0.49663525,116030.0,116020.0,2.10414541]
[1757736012621,0.631365,116030.0,116020.0,2.01592]
[1757736012814,0.58486066,116030.0,116020.0,2.81712]
[1757736013011,0.54313959,116030.0,116020.0,2.81712]
[1757736014118,0.54313959,116030.0,116020.0,2.90534541]
[1757736014317,0.49663525,116030.0,116020.0,2.90534541]
[1757736014716,0.0136,116020.0,116000.0,0.3608]
[1757736014923,0.12365541,116010.0,116000.0,0.44902541]
[1757736015116,0.1490689,116010.0,116000.0,1.25018541]
[1757736016111,0.1490689,116010.0,116000.0,1.16196]
[1757736016312,0.1490689,116010.0,116000.0,1.25018541]
[1757736016516,0.1490689,116010.0,116000.0,1.16296]
[1757736016821,0.1490689,116010.0,116000.0,1.25118541]
[1757736018224,1.0066783,116010.0,116000.0,0.001]
[1757736018417,1.05318264,116010.0,116000.0,0.80212]
[1757736018617,1.0066783,116010.0,116000.0,0.80212]
[1757736018818,1.05309186,116010.0,116000.0,0.80212]
[1757736019422,1.05309186,116010.0,116000.0,0.80112]
[1757736021731,0.21942748,116010.0,116000.0,1.25014541]
[1757736022029,0.21942748,116010.0,116000.0,0.88934541]
[1757736022422,0.30765289,116010.0,116000.0,0.88934541]
[1757736023327,0.30766806,116010.0,116000.0,0.88934541]
[1757736025325,0.30766806,116010.0,116000.0,0.80112]
[1757736025539,0.30766806,116010.0,116000.0,0.88934541]
[1757736025829,0.30766806,116010.0,116000.0,0.80112]
[1757736026330,0.30766806,116010.0,116000.0,0.88934541]
[1757736027328,0.33854142,116010.0,116000.0,0.88934541]
[1757736028430,0.33854142,116010.0,116000.0,0.80112]
[1757736028631,0.33854142,116010.0,116000.0,0.88934541]
[1757736029230,0.38495498,116010.0,116000.0,0.88934541]
[1757736030831,0.33854142,116010.0,116000.0,0.80112]
[1757736031429,0.38495498,116010.0,116000.0,0.88934541]
[1757736032031,0.33854142,116010.0,116000.0,0.88934541]
[1757736032532,0.33854142,116010.0,116000.0,0.80112]
[1757736032732,0.33854142,116010.0,116000.0,0.88934541]
[1757736034235,0.38495498,116010.0,116000.0,0.88934541]
[1757736034430,0.32625654,116010.0,116000.0,0.80112]
[1757736034625,0.01283,116000.0,115990.0,0.37793688]
[1757736034833,0.18434574,116000.0,115990.0,0.81801688]
[1757736035036,0.2097744,116000.0,115990.0,0.81801688]
[1757736035727,0.32752678,116000.0,115990.0,0.81801688]
[1757736036135,0.32752678,116000.0,115990.0,0.81901688]
[1757736036630,0.32752678,116000.0,115990.0,0.80188]
[1757736036832,0.37394034,116000.0,115990.0,0.80188]
[1757736038025,0.68832678,116000.0,115990.0,0.001]
[1757736038234,0.68832678,116000.0,115990.0,0.8018]
[1757736038436,0.70386698,116000.0,115990.0,0.8018]
[1757736039134,0.42194866,116000.0,115990.0,0.001]
[1757736039337,0.65745342,116000.0,115990.0,0.80176]
[1757736041232,0.71947793,116000.0,115990.0,0.80176]
[1757736044233,0.71947793,116000.0,115990.0,0.001]
[1757736044436,0.71947793,116000.0,115990.0,0.80176]
[1757736045130,0.48397317,116000.0,115990.0,0.80176]
[1757736045332,0.71947793,116000.0,115990.0,0.80176]
[1757736047333,0.65745342,116000.0,115990.0,0.80176]
[1757736047838,0.71942719,116000.0,115990.0,0.80176]
[1757736048136,0.48392243,116000.0,115990.0,0.80176]
[1757736048335,0.71942719,116000.0,115990.0,0.80176]
[1757736051539,0.48392243,116000.0,115990.0,0.80176]
[1757736051736,0.71942719,116000.0,115990.0,0.80176]
[1757736052640,0.48392243,116000.0,115990.0,0.80176]
[1757736052938,0.71942719,116000.0,115990.0,0.80176]
[1757736054434,0.48392243,116000.0,115990.0,0.80176]
[1757736054840,0.71942719,116000.0,115990.0,0.80176]
[1757736055139,0.48392243,116000.0,115990.0,0.80176]
[1757736055332,0.65745342,116000.0,115990.0,0.80176]
[1757736055532,0.73500757,116000.0,115990.0,0.80176]
[1757736056539,0.71945198,116000.0,115990.0,0.80176]
[1757736058440,1.8257258,116000.0,115990.0,0.001]
[1757736058644,0.01309,115970.0,115960.0,1.16128]
[1757736058846,0.29506927,115970.0,115960.0,1.16128]
[1757736059049,0.01309,115960.0,115950.0,1.65608]
[1757736059345,0.31901366,115960.0,115950.0,2.45652]
[1757736059539,0.10893756,115960.0,115950.0,2.45652]
[1757736059736,0.34444232,115960.0,115950.0,2.45652]
[1757736060546,0.34444232,115960.0,115950.0,2.45752]
[1757736060939,0.10893756,115960.0,115950.0,2.45752]
[1757736061148,0.34444232,115960.0,115950.0,2.45752]
[1757736062840,0.28247631,115960.0,115950.0,2.45752]
[1757736064045,0.35211369,115960.0,115950.0,2.45752]
[1757736064246,0.39849744,115960.0,115950.0,2.45752]
[1757736068152,0.14751516,115960.0,115950.0,2.45752]
[1757736068355,0.38301992,115960.0,115950.0,2.45752]
[1757736070157,0.35211369,115960.0,115950.0,2.45752]
[1757736070856,0.11660893,115960.0,115950.0,2.45752]
[1757736071058,0.35211369,115960.0,115950.0,2.45752]
[1757736071957,0.11660893,115960.0,115950.0,2.45752]
[1757736072144,0.35211369,115960.0,115950.0,2.45752]
[1757736076454,0.23436131,115960.0,115950.0,2.81832]
[1757736077155,0.22590842,115960.0,115950.0,2.81832]
[1757736077554,0.10815604,115960.0,115950.0,2.93607238]
[1757736077749,0.10815604,115960.0,115950.0,3.18607238]
[1757736078156,0.10815604,115960.0,115950.0,3.06832]
[1757736078354,0.10815604,115960.0,115950.0,3.18607238]
[1757736079957,0.10815604,115960.0,115950.0,3.18591238]
[1757736080357,0.10815604,115960.0,115950.0,2.38563238]
[1757736080558,0.10815604,115960.0,115950.0,3.18591238]
[1757736081460,0.10815604,115960.0,115950.0,3.06816]
[1757736081658,0.10815604,115960.0,115950.0,3.18591238]
[1757736082855,0.10815604,115960.0,115950.0,2.26788]
[1757736083060,0.22590842,115960.0,115950.0,3.18587238]
[1757736083262,0.10815604,115960.0,115950.0,3.18587238]
[1757736090566,0.10815604,115960.0,115950.0,3.06812]
[1757736090767,0.10815604,115960.0,115950.0,3.18587238]
[1757736091359,0.10815604,115960.0,115950.0,3.06792]
[1757736091565,0.10815604,115960.0,115950.0,3.18567238]
[1757736094067,0.10815604,115960.0,115950.0,3.18467238]
[1757736095069,0.10815604,115960.0,115950.0,3.54547238]
[1757736095471,0.10815604,115960.0,115950.0,3.54539238]
[1757736096473,0.19653148,115960.0,115950.0,1.94831088]
[1757736096772,0.10815604,115960.0,115950.0,1.14835088]
[1757736096973,0.10815604,115960.0,115950.0,1.94827088]
[1757736097272,0.19653148,115960.0,115950.0,1.94827088]
[1757736097469,0.19653148,115960.0,115950.0,0.9716]
[1757736097670,0.13023604,115960.0,115950.0,1.94827088]
[1757736098272,0.10815604,115960.0,115950.0,1.94827088]
[1757736098469,0.10815604,115960.0,115950.0,2.03664632]
[1757736098877,0.10815604,115960.0,115950.0,1.77152]
[1757736099071,0.10815604,115960.0,115950.0,2.03664632]
[1757736099272,0.10815604,115960.0,115950.0,1.78664632]
[1757736102375,0.10815604,115960.0,115950.0,0.89835088]
[1757736102573,0.21861148,115960.0,115950.0,1.69815088]
[1757736103079,0.13023604,115960.0,115950.0,1.69815088]
[1757736103378,0.21861148,115960.0,115950.0,1.69815088]
[1757736103980,0.13023604,115960.0,115950.0,1.69815088]
[1757736104182,0.21861148,115960.0,115950.0,1.69815088]
[1757736107984,0.21861148,115960.0,115950.0,0.97655088]
[1757736108283,0.21861148,115960.0,115950.0,1.69815088]
[1757736108686,0.21861148,115960.0,115950.0,1.5214]
[1757736108884,0.21861148,115960.0,115950.0,1.69815088]
[1757736109684,0.13023604,115960.0,115950.0,1.69815088]
[1757736109880,0.21861148,115960.0,115950.0,1.69815088]
[1757736110385,0.13023604,115960.0,115950.0,1.69815088]
[1757736110578,0.21861148,115960.0,115950.0,1.69815088]
[1757736111185,0.13023604,115960.0,115950.0,1.69815088]
[1757736111380,0.21861148,115960.0,115950.0,1.69815088]
[1757736113781,0.13023604,115960.0,115950.0,1.78652632]
[1757736113987,0.13023604,115960.0,115950.0,1.91652632]
[1757736114286,0.21861148,115960.0,115950.0,1.82815088]
[1757736114482,0.13023604,115960.0,115950.0,1.82815088]
[1757736115184,0.13023604,115960.0,115950.0,1.69815088]
[1757736115781,0.03851866,115960.0,115950.0,1.91652632]
[1757736115981,0.03851866,115960.0,115950.0,2.33652632]
[1757736118386,0.03851866,115960.0,115950.0,2.33752632]
[1757736120790,0.03851866,115960.0,115950.0,2.42372452]
[1757736121093,0.01309,115960.0,115950.0,2.33752632]
[1757736122894,0.01309,115960.0,115950.0,2.0724]
[1757736123097,0.01309,115960.0,115950.0,2.33752632]
[1757736123296,0.10146544,115960.0,115950.0,1.36097544]
[1757736123598,0.01309,115960.0,115950.0,2.07188]
[1757736123796,0.10146544,115960.0,115950.0,2.24863088]
[1757736125498,0.14923924,115960.0,115950.0,1.52184]
[1757736125697,0.0608638,115960.0,115950.0,1.69859088]
[1757736125898,0.14923924,115960.0,115950.0,1.69859088]
[1757736126300,0.0608638,115960.0,115950.0,1.69859088]
[1757736126600,0.14923924,115960.0,115950.0,1.69859088]
[1757736127500,0.0608638,115960.0,115950.0,1.69859088]
[1757736127800,0.14923924,115960.0,115950.0,1.69859088]
[1757736128596,0.14923924,115960.0,115950.0,0.81097544]
[1757736128798,0.14923924,115960.0,115950.0,1.61013544]
[1757736133003,0.0608638,115960.0,115950.0,1.61013544]
[1757736133204,0.14923924,115960.0,115950.0,1.69851088]
[1757736136106,0.0608638,115960.0,115950.0,1.69851088]
[1757736136306,0.14923924,115960.0,115950.0,1.69851088]
[1757736138406,0.16940468,115960.0,115950.0,1.69851088]
[1757736139204,0.16940468,115960.0,115950.0,1.52176]
[1757736139404,0.16940468,115960.0,115950.0,1.69851088]
[1757736140005,0.08102924,115960.0,115950.0,1.69851088]
[1757736140201,0.16940468,115960.0,115950.0,1.69851088]
[1757736140607,0.16940468,115960.0,115950.0,1.52176]
[1757736140908,0.16940468,115960.0,115950.0,1.61013544]
[1757736141508,0.16940468,115960.0,115950.0,1.69851088]
[1757736142102,0.16940468,115960.0,115950.0,0.89935088]
[1757736142305,0.16940468,115960.0,115950.0,1.69823088]
[1757736142907,0.16940468,115960.0,115950.0,1.52148]
[1757736143104,0.16940468,115960.0,115950.0,1.69823088]
[1757736143305,0.16940468,115960.0,115950.0,1.52148]
[1757736143505,0.16940468,115960.0,115950.0,1.69823088]
[1757736143708,0.16940468,115960.0,115950.0,1.52148]
[1757736144010,0.16940468,115960.0,115950.0,1.60985544]
[1757736144508,0.16940468,115960.0,115950.0,1.52148]
[1757736144707,0.16940468,115960.0,115950.0,1.60985544]
[1757736145104,0.16940468,115960.0,115950.0,1.52148]
[1757736145310,0.16940468,115960.0,115950.0,1.60985544]
[1757736145510,0.16940468,115960.0,115950.0,1.52148]
[1757736145710,0.16940468,115960.0,115950.0,1.60985544]
[1757736146008,0.16940468,115960.0,115950.0,1.52148]
[1757736146400,0.16940468,115960.0,115950.0,0.7226]
[1757736146606,0.08102924,115960.0,115950.0,1.52132]
[1757736146805,0.16940468,115960.0,115950.0,1.60969544]
[1757736147305,0.08102924,115960.0,115950.0,1.60969544]
[1757736147611,0.16940468,115960.0,115950.0,1.60969544]
[1757736148207,0.16940468,115960.0,115950.0,1.52132]
[1757736148408,0.08102924,115960.0,115950.0,1.60969544]
[1757736148609,0.14923924,115960.0,115950.0,1.60969544]
[1757736148912,0.14923924,115960.0,115950.0,1.52132]
[1757736149114,0.14923924,115960.0,115950.0,1.60969544]
[1757736149412,0.0608638,115960.0,115950.0,1.60969544]
[1757736149613,0.14923924,115960.0,115950.0,1.60969544]
[1757736150312,0.14923924,115960.0,115950.0,1.60965544]
[1757736153308,0.0608638,115960.0,115950.0,1.60965544]
[1757736153515,0.14923924,115960.0,115950.0,1.60965544]
[1757736155811,0.0608638,115960.0,115950.0,1.60965544]
[1757736156007,0.59600848,115960.0,115950.0,0.3618]
[1757736156316,0.98771471,115960.0,115950.0,0.7996]
[1757736156515,0.97385071,115960.0,115950.0,0.7996]
[1757736157318,1.00484734,115960.0,115950.0,0.7986]
[1757736158219,0.95846359,115960.0,115950.0,0.7986]
[1757736159315,0.70846359,115960.0,115950.0,0.7986]
[1757736160009,0.67746696,115960.0,115950.0,0.7986]
[1757736163120,0.67746696,115960.0,115950.0,0.79852]
[1757736164022,0.44168216,115960.0,115950.0,0.79852]
[1757736164222,0.67746696,115960.0,115950.0,0.79852]
[1757736167125,0.92746696,115960.0,115950.0,0.79852]
[1757736167325,0.92746696,115960.0,115940.0,0.3608]
[1757736167528,0.1528024,115950.0,115940.0,0.3608]
[1757736167825,0.1782062,115950.0,115940.0,1.15928]
[1757736171124,0.1782062,115950.0,115940.0,1.16028]
[1757736180136,0.0603138,115950.0,115940.0,1.16028]
[1757736180337,0.1782062,115950.0,115940.0,1.16028]
[1757736182138,0.0603138,115950.0,115940.0,1.16028]
[1757736182334,0.1782062,115950.0,115940.0,1.16028]
[1757736182640,0.0603138,115950.0,115940.0,1.16028]
[1757736182842,0.1782062,115950.0,115940.0,1.16028]
[1757736184042,0.0603138,115950.0,115940.0,1.16028]
[1757736184239,0.1782062,115950.0,115940.0,1.16028]
[1757736185632,0.0603138,115950.0,115940.0,1.16028]
[1757736185833,0.1782062,115950.0,115940.0,1.16028]
[1757736186243,0.20920283,115950.0,115940.0,1.16028]
[1757736187044,0.09131043,115950.0,115940.0,1.16028]
[1757736187245,0.20920283,115950.0,115940.0,1.16028]
[1757736188044,0.09131043,115950.0,115940.0,1.16028]
[1757736188245,0.23018278,115950.0,115940.0,1.16028]
[1757736188441,0.25558658,115950.0,115940.0,1.16028]
[1757736190044,0.20920283,115950.0,115940.0,1.16028]
[1757736190544,0.09131043,115950.0,115940.0,1.16028]
[1757736190746,0.20920283,115950.0,115940.0,1.16028]
[1757736191741,0.09131043,115950.0,115940.0,1.17804483]
[1757736191940,0.20920283,115950.0,115940.0,1.29593723]
[1757736192247,0.20920283,115950.0,115940.0,1.17804483]
[1757736192947,0.09131043,115950.0,115940.0,1.17804483]
[1757736193147,0.20920283,115950.0,115940.0,1.17804483]
[1757736196948,0.09131043,115950.0,115940.0,1.17804483]
[1757736197451,0.20920283,115950.0,115940.0,1.17804483]
[1757736197650,0.20917929,115950.0,115940.0,1.17804483]
[1757736204954,0.09128689,115950.0,115940.0,1.17804483]
[1757736205155,0.20917929,115950.0,115940.0,1.17804483]
[1757736206753,0.09128689,115950.0,115940.0,1.17804483]
[1757736206955,0.20917929,115950.0,115940.0,1.17804483]
[1757736207156,0.09128689,115950.0,115940.0,1.17804483]
[1757736207356,0.20917929,115950.0,115940.0,1.17804483]
[1757736209246,0.09128689,115950.0,115940.0,1.17804483]
[1757736209447,0.20917929,115950.0,115940.0,1.17804483]
[1757736211859,0.17818266,115950.0,115940.0,1.17804483]
[1757736214459,0.20917929,115950.0,115940.0,1.17804483]
[1757736217461,0.17818266,115950.0,115940.0,1.17804483]
[1757736218262,0.20917929,115950.0,115940.0,1.17804483]
[1757736218463,0.26810767,115950.0,115940.0,1.17804483]
[1757736221468,0.26810767,115950.0,115940.0,1.26645522]
[1757736222671,0.23711104,115950.0,115940.0,1.26645522]
[1757736224362,0.23711104,115950.0,115940.0,1.17804483]
[1757736224569,0.06029026,115950.0,115940.0,1.26645522]
[1757736224768,0.23711104,115950.0,115940.0,1.26645522]
[1757736225067,0.23711104,115950.0,115940.0,1.17804483]
[1757736225274,0.23711104,115950.0,115940.0,1.26645522]
[1757736226871,0.23711104,115950.0,115940.0,1.17804483]
[1757736227368,0.23711104,115950.0,115940.0,1.26645522]
[1757736228573,0.32552143,115950.0,115940.0,0.3618]
[1757736228774,0.32552143,115950.0,115940.0,1.16136]
[1757736230870,0.06029026,115950.0,115940.0,1.16136]
[1757736231070,0.32552143,115950.0,115940.0,1.16136]
[1757736231777,0.32552143,115950.0,115940.0,0.3618]
[1757736231980,0.32552143,115950.0,115940.0,1.1606]
[1757736243385,0.23711104,115950.0,115940.0,1.24901039]
[1757736243687,0.23711104,115950.0,115940.0,1.1606]
[1757736243884,0.06029026,115950.0,115940.0,1.24901039]
[1757736244080,0.23711104,115950.0,115940.0,1.24901039]
[1757736244590,0.23711104,115950.0,115940.0,1.1606]
[1757736244789,0.23711104,115950.0,115940.0,1.24901039]
[1757736244980,0.32552143,115950.0,115940.0,1.1606]
[1757736245888,0.06029026,115950.0,115940.0,1.1606]
[1757736246088,0.32552143,115950.0,115940.0,1.1606]
[1757736261698,0.35651806,115950.0,115940.0,1.1606]
[1757736261999,0.32552143,115950.0,115940.0,1.1606]
[1757736263400,0.06029026,115950.0,115940.0,1.1606]
[1757736263704,0.32552143,115950.0,115940.0,1.1606]
[1757736265805,0.35651806,115950.0,115940.0,1.1606]
[1757736266804,0.09128689,115950.0,115940.0,1.1606]
[1757736267007,0.35651806,115950.0,115940.0,1.1606]
[1757736269611,0.09128689,115950.0,115940.0,1.1606]
[1757736270000,0.35651806,115950.0,115940.0,1.1606]
[1757736272406,0.26810767,115950.0,115940.0,1.1606]
[1757736273107,0.09128689,115950.0,115940.0,1.1606]
[1757736273307,0.26810767,115950.0,115940.0,1.1606]
[1757736273802,0.17969728,115950.0,115940.0,1.24901039]
[1757736274109,0.26810767,115950.0,115940.0,1.24901039]
[1757736274909,0.09128689,115950.0,115940.0,1.24901039]
[1757736275207,0.06029026,115950.0,115940.0,1.24901039]
[1757736275403,0.23711104,115950.0,115940.0,1.1606]
[1757736275608,0.23711104,115950.0,115940.0,1.24901039]
[1757736276203,0.23711104,115950.0,115940.0,1.1606]
[1757736276408,0.23711104,115950.0,115940.0,1.24901039]
[1757736278312,0.26810767,115950.0,115940.0,1.24901039]
[1757736278515,0.20916447,115950.0,115940.0,1.1606]
[1757736280515,0.25554822,115950.0,115940.0,1.1606]
[1757736280713,0.17816784,115950.0,115940.0,1.1606]
[1757736282616,0.20916447,115950.0,115940.0,1.1606]
[1757736283216,0.17816784,115950.0,115940.0,1.1606]
[1757736286524,0.20916447,115950.0,115940.0,1.1606]
[1757736288022,0.20900074,115950.0,115940.0,1.1606]
[1757736288326,0.17800411,115950.0,115940.0,1.1606]
[1757736288717,0.06012653,115950.0,115940.0,1.1606]
[1757736288922,0.17800411,115950.0,115940.0,0.3618]
[1757736289124,0.17800411,115950.0,115940.0,1.16004]
[1757736292128,0.20900074,115950.0,115940.0,1.16004]
[1757736296229,0.09112316,115950.0,115940.0,1.16004]
[1757736296432,0.20900074,115950.0,115940.0,1.16004]
[1757736299231,0.09112316,115950.0,115940.0,1.16004]
[1757736299432,0.20900074,115950.0,115940.0,1.16004]
[1757736300336,0.09112316,115950.0,115940.0,1.16004]
[1757736300537,0.20900074,115950.0,115940.0,1.16004]
[1757736301632,0.09112316,115950.0,115940.0,1.16004]
[1757736301933,0.20900074,115950.0,115940.0,1.16004]
[1757736302139,0.09112316,115950.0,115940.0,1.16004]
[1757736302334,0.17800411,115950.0,115940.0,1.16004]
[1757736302534,0.06012653,115950.0,115940.0,1.16004]
[1757736302734,0.17800411,115950.0,115940.0,1.16004]
[1757736310247,0.20900074,115950.0,115940.0,1.16004]
[1757736315444,0.20900074,115950.0,115940.0,0.3618]
[1757736315650,0.20900074,115950.0,115940.0,1.15988]
[1757736316348,0.32687832,115950.0,115940.0,1.15988]
[1757736317449,0.20900074,115950.0,115940.0,1.15988]
[1757736317650,0.20900074,115950.0,115940.0,0.3618]
[1757736317950,0.20900074,115950.0,115940.0,1.15988]
[1757736318149,0.32687832,115950.0,115940.0,1.15988]
[1757736318750,0.20900074,115950.0,115940.0,1.15988]
[1757736319251,0.32687832,115950.0,115940.0,1.15988]
[1757736320451,0.20900074,115950.0,115940.0,1.15988]
[1757736321547,0.25538449,115950.0,115940.0,1.15988]
[1757736321948,0.13750691,115950.0,115940.0,1.15988]
[1757736322254,0.25538449,115950.0,115940.0,1.15988]
[1757736326450,0.20900074,115950.0,115940.0,1.15988]
[1757736327956,0.20900074,115950.0,115940.0,0.3618]
[1757736328157,0.20900074,115950.0,115940.0,1.1598]
[1757736328358,0.22438786,115950.0,115940.0,1.1598]
[1757736332460,0.34226544,115950.0,115940.0,1.1598]
[1757736332761,0.22438786,115950.0,115940.0,1.1598]
[1757736336266,0.34226544,115950.0,115940.0,1.15968]
[1757736336965,0.34226544,115950.0,115940.0,0.3618]
[1757736337167,0.34226544,115950.0,115940.0,0.79888]
[1757736338466,0.37328811,115950.0,115940.0,0.79888]
[1757736340065,0.32690436,115950.0,115940.0,0.79888]
[1757736340464,0.35644463,115950.0,115940.0,0.79888]
[1757736340666,0.40282838,115950.0,115940.0,0.79888]
[1757736340969,0.37180571,115950.0,115940.0,0.79888]
[1757736341266,0.40282131,115950.0,115940.0,0.79888]
[1757736341774,0.37180571,115950.0,115940.0,0.79888]
[1757736342671,0.10651028,115950.0,115940.0,0.79888]
[1757736342864,0.37180571,115950.0,115940.0,0.79888]
[1757736343266,0.4028151,115950.0,115940.0,0.79888]
[1757736347472,0.37180571,115950.0,115940.0,0.79888]
[1757736348873,0.10651028,115950.0,115940.0,0.79888]
[1757736349074,0.37180571,115950.0,115940.0,0.79888]
[1757736354080,0.10651028,115950.0,115940.0,0.79888]
[1757736354284,0.37180571,115950.0,115940.0,0.79888]
[1757736356183,0.40280521,115950.0,115940.0,0.79888]
[1757736356380,0.37180571,115950.0,115940.0,0.79888]
[1757736357275,0.37180571,115950.0,115940.0,0.001]
[1757736357476,0.37180571,115950.0,115940.0,0.79888]
[1757736368292,0.38738797,115950.0,115940.0,0.79888]
[1757736372094,0.32542196,115950.0,115940.0,0.79888]
[1757736377400,0.38738797,115950.0,115940.0,0.79888]
[1757736378300,0.37197517,115950.0,115940.0,0.79888]
[1757736383198,0.10667974,115950.0,115940.0,0.79888]
[1757736383604,0.37197517,115950.0,115940.0,0.79888]
[1757736391411,0.26801851,115950.0,115940.0,1.24811181]
[1757736391612,0.31457172,115950.0,115940.0,1.24811181]
[1757736391911,0.28354336,115950.0,115940.0,1.24811181]
[1757736392213,0.31457162,115950.0,115940.0,1.24811181]
[1757736393313,0.31457162,115950.0,115940.0,1.15968]
[1757736393615,0.31457162,115950.0,115940.0,1.24811181]
[1757736394414,0.26801841,115950.0,115940.0,1.15968]
[1757736394615,0.26801841,115950.0,115940.0,1.24811181]
[1757736395516,0.35645022,115950.0,115940.0,1.15968]
[1757736396814,0.3564473,115950.0,115940.0,1.15968]
[1757736397414,0.26801549,115950.0,115940.0,1.15968]
[1757736397615,0.26801549,115950.0,115940.0,1.24811181]
[1757736397914,0.3564473,115950.0,115940.0,1.24811181]
[1757736398416,0.3564473,115950.0,115940.0,1.15968]
[1757736400425,0.20903634,115950.0,115940.0,1.15968]
[1757736404917,0.20903634,115950.0,115940.0,1.64544894]
[1757736404918,0.06886187,115950.0,115940.0,1.64544894]
[1757736405118,0.03783361,115950.0,115940.0,1.64544894]
[1757736405319,0.03783361,115950.0,115940.0,1.52756447]
[1757736406811,0.15571808,115950.0,115940.0,1.52736447]
[1757736408015,0.15571808,115950.0,115940.0,0.72968447]
[1757736408217,0.15571808,115950.0,115940.0,1.52732447]
[1757736408722,0.17550809,115950.0,115940.0,1.52732447]
[1757736411224,0.17550809,115950.0,115940.0,1.40944]
[1757736411523,0.17550809,115950.0,115940.0,1.52724447]
[1757736412426,0.17550809,115950.0,115940.0,0.6118]
[1757736412624,0.17550809,115950.0,115940.0,1.52724447]
[1757736417030,0.17550809,115950.0,115940.0,1.54490822]
[1757736419632,0.17550809,115950.0,115940.0,1.54478822]
[1757736420229,0.17550809,115950.0,115940.0,1.42690375]
[1757736420430,0.17550809,115950.0,115940.0,1.54478822]
[1757736420932,0.17550809,115950.0,115940.0,1.54474822]
[1757736424028,0.05762362,115950.0,115940.0,1.42686375]
[1757736424235,0.17550809,115950.0,115940.0,1.54474822]
[1757736426238,0.19766809,115950.0,115940.0,0.62946375]
[1757736426440,0.19766809,115950.0,115940.0,1.42674375]
[1757736426939,0.17550809,115950.0,115940.0,1.42674375]
[1757736430146,0.17550809,115950.0,115940.0,1.54462822]
[1757736432948,0.17550809,115950.0,115940.0,1.42674375]
[1757736433148,0.17550809,115950.0,115940.0,1.54462822]
[1757736433340,0.17550809,115950.0,115940.0,1.42674375]
[1757736435349,0.19766809,115950.0,115940.0,0.62946375]
[1757736435548,0.19766809,115950.0,115940.0,1.42662375]
[1757736435744,0.07978362,115950.0,115940.0,1.42662375]
[1757736435950,0.19766809,115950.0,115940.0,1.42662375]
[1757736437152,0.19766809,115950.0,115940.0,0.62946375]
[1757736437348,0.19766809,115950.0,115940.0,1.42658375]
[1757736437547,0.19766809,115950.0,115940.0,1.17658375]
[1757736439350,0.19766809,115950.0,115940.0,1.15892]
[1757736439547,0.07978362,115950.0,115940.0,1.15892]
[1757736439948,0.19766809,115950.0,115940.0,1.15892]
[1757736441256,0.07978362,115950.0,115940.0,1.15892]
[1757736441949,0.19766809,115950.0,115940.0,1.15892]
[1757736443154,0.07978362,115950.0,115940.0,1.15892]
[1757736443355,0.19766809,115950.0,115940.0,1.15892]
[1757736444656,0.07978362,115950.0,115940.0,1.15892]
[1757736445055,0.19766809,115950.0,115940.0,1.15892]
[1757736449060,0.07978362,115950.0,115940.0,1.15892]
[1757736449261,0.19766809,115950.0,115940.0,1.15892]
[1757736450056,0.07978362,115950.0,115940.0,1.15892]
[1757736450261,0.19766809,115950.0,115940.0,1.15892]
[1757736457866,0.07978362,115950.0,115940.0,1.15892]
[1757736458062,0.07978362,115950.0,115940.0,1.27680447]
[1757736458366,0.22869635,115950.0,115940.0,1.27680447]
[1757736459770,0.22869635,115950.0,115940.0,1.15892]
[1757736459963,0.22869635,115950.0,115940.0,1.27680447]
[1757736461573,0.11081188,115950.0,115940.0,1.27680447]
[1757736461771,0.22869635,115950.0,115940.0,1.15892]
[1757736461970,0.22869635,115950.0,115940.0,1.27680447]
[1757736462372,0.28762532,115950.0,115940.0,1.24732672]
[1757736462771,0.28762532,115950.0,115940.0,1.15892]
[1757736462972,0.28762532,115950.0,115940.0,1.24732672]
[1757736464570,0.1992186,115950.0,115940.0,1.24732672]
[1757736464768,0.28762532,115950.0,115940.0,1.24732672]
[1757736464964,0.1992186,115950.0,115940.0,1.24732672]
[1757736468378,0.16819034,115950.0,115940.0,1.24732672]
[1757736469581,0.07978362,115950.0,115940.0,1.24732672]
[1757736469777,0.16819034,115950.0,115940.0,1.24732672]
[1757736472882,0.07978362,115950.0,115940.0,1.24732672]
[1757736473180,0.16819034,115950.0,115940.0,1.24732672]
[1757736476084,0.16819034,115950.0,115940.0,1.15892]
[1757736476284,0.16819034,115950.0,115940.0,1.24732672]
[1757736476785,0.16819034,115950.0,115940.0,1.15892]
[1757736476986,0.16819034,115950.0,115940.0,1.24732672]
[1757736477181,0.25659706,115950.0,115940.0,1.24732672]
[1757736479286,0.16819034,115950.0,115940.0,1.24732672]
[1757736480184,0.07978362,115950.0,115940.0,1.24732672]
[1757736480390,0.16819034,115950.0,115940.0,1.24732672]
[1757736482086,0.16819034,115950.0,115940.0,1.15892]
[1757736482290,0.16819034,115950.0,115940.0,1.24732672]
[1757736483590,0.07978362,115950.0,115940.0,1.24732672]
[1757736483790,0.16819034,115950.0,115940.0,1.24732672]
[1757736486802,0.07978362,115950.0,115940.0,1.24732672]
[1757736487098,0.16819034,115950.0,115940.0,1.24732672]
[1757736487298,0.16819034,115950.0,115940.0,1.15892]
[1757736487895,0.16819034,115950.0,115940.0,1.24732672]
[1757736488099,0.25659706,115950.0,115940.0,1.24732672]
[1757736489202,0.25659706,115950.0,115940.0,1.15892]
[1757736489602,0.25659706,115950.0,115940.0,1.24732672]
[1757736490694,0.25659706,115950.0,115940.0,1.15892]
[1757736490900,0.25659706,115950.0,115940.0,1.24732672]
[1757736493903,0.16819034,115950.0,115940.0,1.24732672]
[1757736494708,0.07978362,115950.0,115940.0,1.24732672]
[1757736494906,0.16819034,115950.0,115940.0,1.24732672]
[1757736495506,0.07978362,115950.0,115940.0,1.24732672]
[1757736495708,0.16819034,115950.0,115940.0,1.24732672]